[Event "EYTCC U18 Girls 2019"]
[Site "Pardubice"]
[Date "2019.07.16"]
[Round "6.26"]
[White "Ciolacu, Alessia-Mihaela"]
[Black "Antova, Gabriela"]
[Result "1/2-1/2"]
[ECO "A06"]
[WhiteElo "2199"]
[BlackElo "2257"]
[Annotator "ChessBase"]
[PlyCount "103"]
[EventDate "2019.07.11"]
[EventType "swiss"]
[EventCountry "CZE"]
[SourceTitle "playchess.com"]
[Source "ChessBase"]
[SourceQuality "1"]
[WhiteTeam "Romania"]
[BlackTeam "Bulgaria"]
[WhiteTeamCountry "ROU"]
[BlackTeamCountry "BUL"]
[TimeControl "40/5400+30:1800+30"]

1. Nf3 {[%emt 0:00:00]} d5 {[%emt 0:00:00]} 2. c4 {[%emt 0:00:00]} c6 {[%emt 0:00:00]} 3. e3 {[%emt 0:02:43]} Nf6 {[%emt 0:00:21]} 4. Nc3 {[%emt 0:02:56]} e6 {[%emt 0:01:12]} 5. b3 {[%emt 0:00:23]} Bd6 {[%emt 0:02:21]} 6. Bb2 {[%emt 0:00:05]} Nbd7 {[%emt 0:01:20]} 7. Qc2 {[%emt 0:00:22]} O-O {[%emt 0:03:47]} 8. Be2 {[%emt 0:01:53]} Re8 {[%emt 0:13:16]} 9. Rg1 {[%emt 0:10:45]} e5 {[%emt 0:02:45]} 10. g4 {[%emt 0:01:24]} d4 {[%emt 0:03:09]} 11. exd4 {[%emt 0:25:43]} exd4 {[%emt 0:04:38]} 12. Nxd4 {[%emt 0:01:45]} Bxh2 {[%emt 0:10:46]} 13. Rg2 {[%emt 0:07:35]} Be5 {[%emt 0:02:05]} 14. Nf5 {[%emt 0:01:40]} Nc5 {[%emt 0:08:27]} 15. Ne3 {[%emt 0:07:10]} Ne6 {[%emt 0:09:10]} 16. O-O-O {[%emt 0:08:40]} Nd4 {[%emt 0:00:50]} 17. Qb1 {[%emt 0:04:53]} Nd7 {[%emt 0:08:47]} 18. Bd3 {[%emt 0:03:06]} g6 {[%emt 0:02:04]} 19. Ne2 {[%emt 0:01:30]} Nc5 {[%emt 0:02:19]} 20. Nxd4 {[%emt 0:03:11]} Bxd4 {[%emt 0:00:01]} 21. Bc2 {[%emt 0:01:50]} Qf6 {[%emt 0:10:51]} 22. Bxd4 {[%emt 0:01:12]} Qxd4 {[%emt 0:00:02]} 23. Qb2 {[%emt 0:00:27]} Ne6 {[%emt 0:01:22]} 24. Nf5 {[%emt 0:02:47]} Qxb2+ {[%emt 0:00:28]} 25. Kxb2 {[%emt 0:00:05]} Nf4 {[%emt 0:00:31]} 26. Nh6+ {[%emt 0:01:02]} Kg7 {[%emt 0:00:30]} 27. Rh2 {[%emt 0:00:07]} f6 {[%emt 0:02:28]} 28. Rdh1 {[%emt 0:01:17]} Rh8 {[%emt 0:05:06]} 29. Re1 {[%emt 0:00:46]} Be6 {[%emt 0:01:00]} 30. Re4 {[%emt 0:00:28]} g5 {[%emt 0:00:09]} 31. Re1 {[%emt 0:02:03]} Rae8 {[%emt 0:00:46]} 32. Reh1 {[%emt 0:01:39]} Ng6 {[%emt 0:00:57]} 33. Nf5+ {[%emt 0:03:23]} Bxf5 {[%emt 0:00:07]} 34. Bxf5 {[%emt 0:00:24]} Re2 {[%emt 0:01:30]} 35. Kc3 {[%emt 0:02:14]} Nh4 {[%emt 0:01:51]} 36. Bd3 {[%emt 0:00:08]} Re7 {[%emt 0:00:05]} 37. f4 {[%emt 0:00:17]} h6 {[%emt 0:00:01]} 38. Rf1 {[%emt 0:00:35]} Rd8 {[%emt 0:01:05]} 39. fxg5 {[%emt 0:00:28]} hxg5 {[%emt 0:01:43]} 40. Rhf2 {[%emt 0:01:14]} Re6 {[%emt 0:01:06]} 41. c5 {[%emt 0:06:58]} Rf8 {[%emt 0:05:45]} 42. b4 {[%emt 0:02:51]} b6 {[%emt 0:07:43]} 43. cxb6 {[%emt 0:03:49]} axb6 {[%emt 0:00:01]} 44. a4 {[%emt 0:01:08]} Ra8 {[%emt 0:02:27]} 45. Bc2 {[%emt 0:01:30]} Ng6 {[%emt 0:01:17]} 46. Bxg6 {[%emt 0:00:50]} Kxg6 {[%emt 0:00:01]} 47. Kb3 {[%emt 0:00:23]} Rd6 {[%emt 0:00:58]} 48. d4 {[%emt 0:02:46]} Kg7 {[%emt 0:04:45]} 49. Rf5 {[%emt 0:03:26]} Rxd4 {[%emt 0:06:13]} 50. Rxf6 {[%emt 0:02:08]} Rxg4 {[%emt 0:00:01]} 51. Rxc6 {[%emt 0:00:42]} Rg3+ {[%emt 0:00:00]} 52. Kc4 {[%emt 0:00:43]} 1/2-1/2

[Event "EYTCC U18 Girls 2019"]
[Site "Pardubice"]
[Date "2019.07.16"]
[Round "6.27"]
[White "Sliwicka, Alicja"]
[Black "Muetsch, Annmarie"]
[Result "1/2-1/2"]
[ECO "B47"]
[WhiteElo "2261"]
[BlackElo "2266"]
[Annotator "NA"]
[PlyCount "82"]
[EventDate "2019.07.11"]
[EventType "swiss"]
[EventCountry "CZE"]
[SourceTitle "playchess.com"]
[Source "ChessBase"]
[SourceQuality "1"]
[WhiteTeam "Poland"]
[BlackTeam "Germany"]
[WhiteTeamCountry "POL"]
[BlackTeamCountry "GER"]
[TimeControl "40/5400+30:1800+30"]

1. e4 {[%emt 0:00:00]} c5 {[%emt 0:00:00]} 2. Nf3 {[%emt 0:00:00]} e6 {[%emt 0:00:00]} 3. d4 {[%emt 0:00:00]} cxd4 {[%emt 0:00:00]} 4. Nxd4 {[%emt 0:00:00]} Nc6 {[%emt 0:00:00]} 5. Nc3 {[%emt 0:00:00]} Qc7 {[%emt 0:00:00]} 6. g3 {[%emt 0:00:07]} Nf6 {[%emt 0:00:31]} 7. Bg2 {[%emt 0:00:08]} a6 {[%emt 0:00:09]} 8. O-O {[%emt 0:00:09]} h5 {[%emt 0:00:30]} 9. h3 Bc5 {[%emt 0:00:32]} 10. Nb3 {[%emt 0:07:36]} Ba7 {[%emt 0:00:19]} 11. Bf4 {[%emt 0:06:18]} Ne5 {[%emt 0:00:21]} 12. Qe2 {[%emt 0:05:54]} d6 {[%emt 0:08:04]} 13. Rad1 {[%emt 0:03:20]} b5 {[%emt 0:10:00]} 14. Qd2 {[%emt 0:16:57]} Bb7 {[%emt 0:07:59]} 15. Bxe5 {[%emt 0:01:02]} dxe5 {[%emt 0:00:11]} 16. Qg5 {[%emt 0:00:58]} b4 {[%emt 0:05:08]} 17. Nb1 {[%emt 0:12:26]} Bxe4 {[%emt 0:07:31]} 18. N1d2 {[%emt 0:05:09]} Bxg2 {[%emt 0:02:49]} 19. Kxg2 {[%emt 0:00:06]} O-O {[%emt 0:04:24]} 20. Rfe1 {[%emt 0:07:29]} Qxc2 {[%emt 0:13:07]} 21. Qxe5 {[%emt 0:01:06]} Rac8 {[%emt 0:02:27]} 22. Rc1 {[%emt 0:06:01]} Qd3 {[%emt 0:01:05]} 23. Ne4 {[%emt 0:01:30]} Nxe4 {[%emt 0:01:41]} 24. Qxe4 {[%emt 0:00:41]} Qxe4+ {[%emt 0:09:36]} 25. Rxe4 {[%emt 0:00:08]} Rxc1 {[%emt 0:00:02]} 26. Nxc1 {[%emt 0:00:05]} Rc8 {[%emt 0:00:05]} 27. Nd3 {[%emt 0:01:44]} Rd8 {[%emt 0:02:06]} 28. Nxb4 {[%emt 0:00:30]} Rd2 {[%emt 0:00:30]} 29. Rf4 {[%emt 0:01:44]} Rxb2 {[%emt 0:01:47]} 30. Nxa6 {[%emt 0:00:30]} Rxa2 {[%emt 0:00:30]} 31. Nb4 {[%emt 0:02:13]} Rd2 {[%emt 0:02:17]} 32. Nc6 {[%emt 0:02:23]} Bc5 {[%emt 0:01:43]} 33. Na5 {[%emt 0:00:30]} Ra2 {[%emt 0:02:06]} 34. Nb3 {[%emt 0:02:18]} Bb6 {[%emt 0:01:12]} 35. Nc1 {[%emt 0:01:06]} Rd2 36. Nb3 {[%emt 0:04:25]} Rb2 {[%emt 0:01:29]} 37. Nc1 {[%emt 0:00:49]} e5 {[%emt 0:10:30]} 38. Nd3 {[%emt 0:03:24]} Rb5 {[%emt 0:00:08]} 39. Rb4 {[%emt 0:00:30]} Rxb4 {[%emt 0:00:30]} 40. Nxb4 {[%emt 0:02:42]} f5 41. Nc6 f4 {[%emt 0:35:39]} 1/2-1/2

[Event "EYTCC U18 Girls 2019"]
[Site "Pardubice"]
[Date "2019.07.16"]
[Round "6.28"]
[White "Schneider, Jana"]
[Black "Sowa, Wiktoria"]
[Result "1-0"]
[ECO "B33"]
[WhiteElo "2216"]
[BlackElo "2108"]
[Annotator "NA"]
[PlyCount "87"]
[EventDate "2019.07.11"]
[EventType "swiss"]
[EventCountry "CZE"]
[SourceTitle "playchess.com"]
[Source "ChessBase"]
[SourceQuality "1"]
[WhiteTeam "Germany"]
[BlackTeam "Poland"]
[WhiteTeamCountry "GER"]
[BlackTeamCountry "POL"]
[TimeControl "40/5400+30:1800+30"]

1. e4 {[%emt 0:00:00]} c5 {[%emt 0:00:00]} 2. Nf3 {[%emt 0:00:00]} Nc6 {[%emt 0:00:00]} 3. d4 {[%emt 0:00:00]} cxd4 {[%emt 0:00:00]} 4. Nxd4 {[%emt 0:00:00]} Nf6 {[%emt 0:00:00]} 5. Nc3 {[%emt 0:00:05]} e5 {[%emt 0:00:14]} 6. Ndb5 {[%emt 0:00:09]} d6 {[%emt 0:00:34]} 7. Bg5 {[%emt 0:00:12]} a6 {[%emt 0:00:26]} 8. Na3 {[%emt 0:00:07]} b5 {[%emt 0:00:46]} 9. Nd5 {[%emt 0:00:10]} Be7 {[%emt 0:00:11]} 10. Bxf6 {[%emt 0:00:07]} Bxf6 {[%emt 0:00:07]} 11. c3 {[%emt 0:00:10]} Bg5 {[%emt 0:01:15]} 12. Nc2 {[%emt 0:00:33]} Ne7 {[%emt 0:01:30]} 13. Nce3 {[%emt 0:11:55]} Bxe3 {[%emt 0:00:42]} 14. Nxe3 {[%emt 0:00:12]} Bb7 {[%emt 0:00:51]} 15. a4 {[%emt 0:03:55]} b4 {[%emt 0:08:20]} 16. Nc4 {[%emt 0:03:48]} d5 {[%emt 0:03:38]} 17. exd5 {[%emt 0:04:28]} Nxd5 {[%emt 0:03:48]} 18. cxb4 {[%emt 0:10:11]} O-O {[%emt 0:05:37]} 19. Ne3 {[%emt 0:17:32]} Nxe3 {[%emt 0:07:44]} 20. Qxd8 {[%emt 0:00:45]} Nc2+ {[%emt 0:00:27]} 21. Kd2 {[%emt 0:01:07]} Rfxd8+ {[%emt 0:00:25]} 22. Kxc2 {[%emt 0:00:08]} Rac8+ {[%emt 0:00:45]} 23. Kb3 {[%emt 0:01:13]} Rd2 {[%emt 0:04:18]} 24. Bc4 {[%emt 0:05:09]} Bxg2 {[%emt 0:02:53]} 25. Rhe1 {[%emt 0:01:07]} Rxf2 {[%emt 0:09:30]} 26. Rxe5 {[%emt 0:00:27]} g6 {[%emt 0:01:23]} 27. Bxa6 {[%emt 0:10:58]} Rcc2 {[%emt 0:00:58]} 28. Rb1 {[%emt 0:00:26]} Bh3 {[%emt 0:02:25]} 29. Bd3 {[%emt 0:13:54]} Rcd2 {[%emt 0:02:08]} 30. Kc3 {[%emt 0:02:03]} Be6 {[%emt 0:01:16]} 31. Rxe6 {[%emt 0:02:44]} fxe6 {[%emt 0:00:10]} 32. a5 {[%emt 0:00:20]} e5 {[%emt 0:01:23]} 33. a6 {[%emt 0:00:42]} e4 {[%emt 0:00:10]} 34. Bxe4 {[%emt 0:06:37]} Rd7 {[%emt 0:00:17]} 35. Ra1 {[%emt 0:01:18]} Rc7+ {[%emt 0:00:48]} 36. Kb3 {[%emt 0:01:58]} Ra7 {[%emt 0:00:21]} 37. b5 {[%emt 0:00:43]} Rf6 {[%emt 0:00:03]} 38. Bd5+ {[%emt 0:00:24]} Kf8 {[%emt 0:00:25]} 39. Kb4 {[%emt 0:00:06]} Ke7 {[%emt 0:00:18]} 40. Kc5 {[%emt 0:01:01]} Rf5 {[%emt 0:00:57]} 41. b6 {[%emt 0:30:17]} Rd7 {[%emt 0:30:04]} 42. Rd1 {[%emt 0:00:46]} Rf6 {[%emt 0:00:24]} 43. a7 {[%emt 0:00:21]} Rf8 {[%emt 0:00:03]} 44. Re1+ {[%emt 0:01:00]} 1-0

[Event "EYTCC U18 Girls 2019"]
[Site "Pardubice"]
[Date "2019.07.16"]
[Round "6.29"]
[White "Radeva, Viktoria"]
[Black "Ferkova, Dominika"]
[Result "1/2-1/2"]
[ECO "B18"]
[WhiteElo "2247"]
[BlackElo "2009"]
[Annotator "NA"]
[PlyCount "90"]
[EventDate "2019.07.11"]
[EventType "swiss"]
[EventCountry "CZE"]
[SourceTitle "playchess.com"]
[Source "ChessBase"]
[SourceQuality "1"]
[WhiteTeam "Bulgaria"]
[BlackTeam "Slovakia"]
[WhiteTeamCountry "BUL"]
[BlackTeamCountry "SVK"]
[TimeControl "40/5400+30:1800+30"]

1. e4 {[%emt 0:00:00]} c6 {[%emt 0:00:00]} 2. d4 {[%emt 0:00:00]} d5 {[%emt 0:00:00]} 3. Nc3 {[%emt 0:00:00]} dxe4 {[%emt 0:00:04]} 4. Nxe4 {[%emt 0:00:00]} Bf5 {[%emt 0:00:12]} 5. Ng3 {[%emt 0:00:00]} Bg6 {[%emt 0:00:07]} 6. Bc4 {[%emt 0:00:14]} e6 {[%emt 0:01:17]} 7. N1e2 {[%emt 0:00:05]} Nf6 {[%emt 0:02:44]} 8. Nf4 {[%emt 0:00:19]} Bd6 {[%emt 0:01:12]} 9. O-O {[%emt 0:00:20]} Qc7 {[%emt 0:02:05]} 10. Qf3 {[%emt 0:00:43]} O-O {[%emt 0:14:17]} 11. c3 {[%emt 0:05:35]} Nd5 {[%emt 0:11:03]} 12. Nxg6 {[%emt 0:03:26]} hxg6 {[%emt 0:02:05]} 13. Re1 {[%emt 0:02:27]} Nd7 {[%emt 0:11:23]} 14. Bg5 {[%emt 0:03:37]} b5 {[%emt 0:14:32]} 15. Bd3 {[%emt 0:06:53]} N7f6 {[%emt 0:05:25]} 16. Kh1 {[%emt 0:07:13]} Bf4 {[%emt 0:04:03]} 17. Bxf4 {[%emt 0:12:00]} Qxf4 {[%emt 0:01:04]} 18. Qxf4 {[%emt 0:04:30]} Nxf4 {[%emt 0:00:07]} 19. Bc2 {[%emt 0:00:17]} Rfd8 {[%emt 0:04:35]} 20. Ne4 {[%emt 0:03:36]} Rab8 {[%emt 0:05:40]} 21. Nc5 {[%emt 0:05:33]} a5 {[%emt 0:01:27]} 22. g3 {[%emt 0:01:36]} N4d5 {[%emt 0:01:08]} 23. Rad1 {[%emt 0:07:38]} Nb6 {[%emt 0:03:17]} 24. Bd3 {[%emt 0:04:20]} Nfd7 {[%emt 0:02:16]} 25. Be4 {[%emt 0:12:35]} Nxc5 {[%emt 0:08:38]} 26. dxc5 {[%emt 0:00:02]} Rxd1 {[%emt 0:00:16]} 27. Rxd1 {[%emt 0:00:05]} Na4 {[%emt 0:01:18]} 28. Bxc6 {[%emt 0:06:33]} Nxb2 {[%emt 0:00:49]} 29. Rb1 {[%emt 0:00:36]} Nd3 {[%emt 0:02:00]} 30. Rxb5 {[%emt 0:01:38]} Rxb5 {[%emt 0:00:22]} 31. Bxb5 {[%emt 0:00:02]} Nxc5 {[%emt 0:00:07]} 32. Kg2 {[%emt 0:00:13]} Kf8 {[%emt 0:00:01]} 33. Kf3 {[%emt 0:00:10]} Ke7 {[%emt 0:00:17]} 34. Ke3 {[%emt 0:00:29]} e5 {[%emt 0:00:38]} 35. f3 {[%emt 0:03:04]} f6 {[%emt 0:01:07]} 36. h4 {[%emt 0:01:20]} g5 {[%emt 0:01:13]} 37. hxg5 {[%emt 0:00:11]} fxg5 {[%emt 0:00:01]} 38. g4 {[%emt 0:04:26]} Kd6 {[%emt 0:00:48]} 39. Be8 {[%emt 0:01:40]} Ke7 {[%emt 0:00:13]} 40. Bg6 {[%emt 0:00:36]} Kd6 {[%emt 0:00:42]} 41. Bf7 {[%emt 0:32:21]} Kc6 {[%emt 0:31:14]} 42. Be8+ {[%emt 0:00:00]} Kb6 {[%emt 0:00:00]} 43. a3 {[%emt 0:00:00]} Kc7 {[%emt 0:00:00]} 44. Bb5 {[%emt 0:00:00]} Kb6 {[%emt 0:00:00]} 45. Be8 {[%emt 0:00:00]} Kc7 {[%emt 0:00:00] Ke4} 1/2-1/2

[Event "EYTCC U18 Girls 2019"]
[Site "Pardubice"]
[Date "2019.07.16"]
[Round "6.30"]
[White "Sankova, Stella"]
[Black "Krasteva, Beloslava"]
[Result "1/2-1/2"]
[ECO "B51"]
[WhiteElo "1997"]
[BlackElo "2327"]
[Annotator "NA"]
[PlyCount "60"]
[EventDate "2019.07.11"]
[EventType "swiss"]
[EventCountry "CZE"]
[SourceTitle "playchess.com"]
[Source "ChessBase"]
[SourceQuality "1"]
[WhiteTeam "Slovakia"]
[BlackTeam "Bulgaria"]
[WhiteTeamCountry "SVK"]
[BlackTeamCountry "BUL"]
[TimeControl "40/5400+30:1800+30"]

1. e4 {[%emt 0:00:00]} c5 {[%emt 0:00:00]} 2. Nf3 {[%emt 0:00:00]} d6 {[%emt 0:00:07]} 3. Bb5+ {[%emt 0:00:00]} Nd7 {[%emt 0:00:29]} 4. d4 {[%emt 0:00:00]} cxd4 {[%emt 0:00:21]} 5. Qxd4 {[%emt 0:00:04]} a6 {[%emt 0:00:31]} 6. Bxd7+ {[%emt 0:00:05]} Bxd7 {[%emt 0:00:17]} 7. c4 {[%emt 0:00:05]} Rc8 {[%emt 0:00:32]} 8. Nc3 {[%emt 0:00:53]} b5 {[%emt 0:05:08]} 9. cxb5 {[%emt 0:02:10]} axb5 {[%emt 0:00:07]} 10. e5 {[%emt 0:01:37]} Bc6 {[%emt 0:10:02]} 11. exd6 {[%emt 0:06:13]} Qxd6 {[%emt 0:01:21]} 12. Qxd6 {[%emt 0:01:23]} exd6 {[%emt 0:00:02]} 13. O-O {[%emt 0:05:47]} Nf6 {[%emt 0:03:27]} 14. Re1+ {[%emt 0:01:17]} Kd7 {[%emt 0:02:04]} 15. Bg5 {[%emt 0:08:40]} Be7 {[%emt 0:08:59]} 16. Rad1 {[%emt 0:10:00]} Bxf3 {[%emt 0:04:06]} 17. gxf3 {[%emt 0:00:14]} Rc5 {[%emt 0:03:07]} 18. Bxf6 {[%emt 0:06:07]} gxf6 {[%emt 0:06:45]} 19. Re4 {[%emt 0:25:53]} Rg8+ {[%emt 0:07:12]} 20. Kh1 {[%emt 0:00:06]} f5 {[%emt 0:04:12]} 21. Red4 {[%emt 0:02:56]} Rg6 {[%emt 0:02:17]} 22. Nd5 {[%emt 0:05:08]} Bd8 {[%emt 0:04:37]} 23. Nf4 {[%emt 0:04:27]} Rh6 {[%emt 0:02:07]} 24. Nd3 {[%emt 0:00:31]} Rc2 {[%emt 0:01:50]} 25. Rd5 {[%emt 0:00:46]} Bb6 {[%emt 0:05:04]} 26. Kg2 {[%emt 0:05:30]} Rg6+ {[%emt 0:02:10]} 27. Kf1 {[%emt 0:00:45]} Rh6 {[%emt 0:02:58]} 28. Kg2 {[%emt 0:01:48]} Rg6+ {[%emt 0:05:27]} 29. Kf1 {[%emt 0:00:44]} Rh6 {[%emt 0:03:42]} 30. Kg2 {[%emt 0:00:46]} Rg6+ {[%emt 0:01:34]} 1/2-1/2

[Event "EYTCC U18 Girls 2019"]
[Site "Pardubice"]
[Date "2019.07.16"]
[Round "6.31"]
[White "Katkov, Michelle"]
[Black "Kucharska, Honorata"]
[Result "1-0"]
[ECO "B14"]
[WhiteElo "2129"]
[BlackElo "2054"]
[Annotator "NA"]
[PlyCount "75"]
[EventDate "2019.07.11"]
[EventType "swiss"]
[EventCountry "CZE"]
[SourceTitle "playchess.com"]
[Source "ChessBase"]
[SourceQuality "1"]
[WhiteTeam "Israel"]
[BlackTeam "Poland"]
[WhiteTeamCountry "ISR"]
[BlackTeamCountry "POL"]
[TimeControl "40/5400+30:1800+30"]

1. e4 {[%emt 0:00:00]} c6 {[%emt 0:00:00]} 2. d4 {[%emt 0:00:01]} d5 {[%emt 0:00:00]} 3. exd5 {[%emt 0:00:09]} cxd5 {[%emt 0:00:00]} 4. c4 {[%emt 0:00:06]} Nf6 {[%emt 0:00:11]} 5. Nc3 {[%emt 0:00:05]} g6 {[%emt 0:00:08]} 6. Qb3 {[%emt 0:01:56]} Bg7 {[%emt 0:00:46]} 7. cxd5 {[%emt 0:01:23]} O-O {[%emt 0:00:42]} 8. Be2 {[%emt 0:01:16]} Nbd7 {[%emt 0:01:17]} 9. Bf4 {[%emt 0:04:51]} Nb6 {[%emt 0:01:41]} 10. Bf3 {[%emt 0:05:46]} Bg4 {[%emt 0:02:57]} 11. Bxg4 {[%emt 0:05:00]} Nxg4 {[%emt 0:00:12]} 12. Nf3 {[%emt 0:00:14]} Nf6 {[%emt 0:02:27]} 13. d6 {[%emt 0:01:27]} exd6 {[%emt 0:00:39]} 14. O-O {[%emt 0:01:48]} d5 {[%emt 0:16:00]} 15. Rfe1 {[%emt 0:14:55]} Qd7 {[%emt 0:04:58]} 16. Be5 {[%emt 0:04:48]} Rad8 {[%emt 0:16:22]} 17. Rac1 {[%emt 0:08:48]} Nh5 {[%emt 0:06:51]} 18. Nb5 {[%emt 0:06:09]} a6 {[%emt 0:07:25]} 19. Nd6 {[%emt 0:02:16]} f6 {[%emt 0:00:22]} 20. Qxb6 {[%emt 0:03:57]} fxe5 {[%emt 0:01:52]} 21. dxe5 {[%emt 0:01:58]} Nf4 {[%emt 0:01:56]} 22. h3 {[%emt 0:08:33]} Nxh3+ {[%emt 0:11:47]} 23. gxh3 {[%emt 0:00:06]} Qxh3 {[%emt 0:00:30]} 24. Nh2 {[%emt 0:02:26]} Bh6 {[%emt 0:00:57]} 25. Qxb7 {[%emt 0:05:57]} Bxc1 {[%emt 0:08:54]} 26. Qxd5+ {[%emt 0:00:06]} Kh8 {[%emt 0:01:27]} 27. Nf7+ {[%emt 0:02:10]} Rxf7 {[%emt 0:00:24]} 28. Qxd8+ {[%emt 0:00:08]} Kg7 {[%emt 0:00:10]} 29. Rxc1 {[%emt 0:00:28]} Qf5 {[%emt 0:03:07]} 30. Qd2 {[%emt 0:02:02]} h5 {[%emt 0:02:00]} 31. Re1 {[%emt 0:01:58]} Qe6 {[%emt 0:01:10]} 32. Qd6 {[%emt 0:01:14]} Qf5 {[%emt 0:00:03]} 33. Qd4 {[%emt 0:01:30]} Qe6 {[%emt 0:02:13]} 34. Nf1 {[%emt 0:03:07]} Kh7 {[%emt 0:01:54]} 35. Ng3 {[%emt 0:02:16]} a5 {[%emt 0:01:09]} 36. Re3 {[%emt 0:01:38]} Rb7 {[%emt 0:01:38]} 37. Ne4 {[%emt 0:00:48]} Rb4 {[%emt 0:00:52]} 38. Ng5+ {[%emt 0:00:25]} 1-0

[Event "EYTCC U18 Girls 2019"]
[Site "Pardubice"]
[Date "2019.07.16"]
[Round "6.32"]
[White "Malicka, Maria"]
[Black "Levitan, Ronit"]
[Result "1/2-1/2"]
[ECO "C77"]
[WhiteElo "2115"]
[BlackElo "2022"]
[Annotator "ChessBase"]
[PlyCount "126"]
[EventDate "2019.07.11"]
[EventType "swiss"]
[EventCountry "CZE"]
[SourceTitle "playchess.com"]
[Source "ChessBase"]
[SourceQuality "1"]
[WhiteTeam "Poland"]
[BlackTeam "Israel"]
[WhiteTeamCountry "POL"]
[BlackTeamCountry "ISR"]
[TimeControl "40/5400+30:1800+30"]

1. e4 {[%emt 0:00:00]} e5 {[%emt 0:00:00]} 2. Nf3 {[%emt 0:00:00]} Nc6 {[%emt 0:00:10]} 3. Bb5 {[%emt 0:00:00]} a6 {[%emt 0:00:07]} 4. Ba4 {[%emt 0:00:00]} Nf6 {[%emt 0:00:07]} 5. d3 {[%emt 0:00:00]} d6 {[%emt 0:00:29]} 6. c3 {[%emt 0:00:00]} g6 {[%emt 0:00:19]} 7. O-O {[%emt 0:00:07]} Bg7 {[%emt 0:00:22]} 8. Nbd2 {[%emt 0:00:10]} O-O {[%emt 0:00:24]} 9. Re1 {[%emt 0:00:09]} Nd7 {[%emt 0:00:59]} 10. Nf1 {[%emt 0:04:36]} Nc5 {[%emt 0:00:53]} 11. Bxc6 {[%emt 0:08:18]} bxc6 {[%emt 0:00:10]} 12. d4 {[%emt 0:00:14]} Nd7 {[%emt 0:00:38]} 13. Ne3 {[%emt 0:09:54]} c5 {[%emt 0:03:00]} 14. dxe5 {[%emt 0:02:29]} Nxe5 {[%emt 0:02:59]} 15. Nxe5 {[%emt 0:00:35]} Bxe5 {[%emt 0:01:47]} 16. Nc4 {[%emt 0:04:05]} Bg7 {[%emt 0:00:49]} 17. Bf4 {[%emt 0:00:26]} a5 {[%emt 0:07:29]} 18. e5 {[%emt 0:12:28]} Be6 {[%emt 0:01:31]} 19. Nd2 {[%emt 0:06:29]} Qb8 {[%emt 0:14:12]} 20. exd6 {[%emt 0:09:53]} cxd6 {[%emt 0:05:36]} 21. Ne4 {[%emt 0:03:24]} Qxb2 {[%emt 0:01:28]} 22. Bxd6 {[%emt 0:00:35]} Rfd8 {[%emt 0:08:05]} 23. Qf3 {[%emt 0:02:33]} Bf5 {[%emt 0:17:19]} 24. Bxc5 {[%emt 0:08:48]} Bxe4 {[%emt 0:02:57]} 25. Qxe4 {[%emt 0:00:07]} Bxc3 {[%emt 0:02:25]} 26. Rab1 {[%emt 0:00:44]} Qxa2 {[%emt 0:01:01]} 27. Red1 {[%emt 0:02:04]} Re8 {[%emt 0:02:07]} 28. Qd3 {[%emt 0:04:51]} Bg7 {[%emt 0:00:27]} 29. Rd2 {[%emt 0:01:00]} Qe6 {[%emt 0:01:08]} 30. g3 {[%emt 0:00:42]} a4 {[%emt 0:00:32]} 31. Qa3 {[%emt 0:01:40]} h5 {[%emt 0:01:42]} 32. h4 {[%emt 0:01:16]} Reb8 {[%emt 0:03:53]} 33. Rbd1 {[%emt 0:07:04]} Rb3 {[%emt 0:07:06]} 34. Qa2 {[%emt 0:01:11]} Qc4 {[%emt 0:01:30]} 35. Be3 {[%emt 0:05:38]} a3 {[%emt 0:04:11]} 36. Kh2 {[%emt 0:00:50]} Kh7 {[%emt 0:00:40]} 37. Bd4 {[%emt 0:01:18]} Bxd4 {[%emt 0:03:38]} 38. Rxd4 {[%emt 0:00:03]} Qe6 {[%emt 0:00:14]} 39. Rd6 {[%emt 0:01:49]} Rb2 {[%emt 0:05:53]} 40. Qxb2 {[%emt 0:02:40]} axb2 {[%emt 0:00:21]} 41. Rxe6 {[%emt 0:30:04]} fxe6 {[%emt 0:30:11]} 42. Rd7+ {[%emt 0:00:12]} Kh6 {[%emt 0:00:48]} 43. Rb7 {[%emt 0:00:06]} Ra2 {[%emt 0:00:12]} 44. Kh3 {[%emt 0:00:00]} g5 {[%emt 0:00:00]} 45. hxg5+ {[%emt 0:00:00]} Kxg5 {[%emt 0:00:00]} 46. Rb5+ {[%emt 0:00:00]} Kf6 {[%emt 0:00:00]} 47. f4 {[%emt 0:00:00]} Kg6 {[%emt 0:00:00]} 48. Rg5+ {[%emt 0:00:00]} Kf7 {[%emt 0:00:00]} 49. Rb5 {[%emt 0:00:00]} Ke7 {[%emt 0:00:00]} 50. Kh4 {[%emt 0:00:00]} Kd6 {[%emt 0:00:00]} 51. Rb8 {[%emt 0:00:00]} Kc5 {[%emt 0:00:00]} 52. Kxh5 {[%emt 0:00:00]} Kc4 {[%emt 0:00:00]} 53. Kg6 {[%emt 0:00:00]} Kc3 {[%emt 0:00:00]} 54. Rc8+ {[%emt 0:01:21]} Kd3 {[%emt 0:00:00]} 55. Rb8 {[%emt 0:00:18]} Kc2 {[%emt 0:02:20]} 56. Rc8+ {[%emt 0:00:37]} Kd3 {[%emt 0:02:22]} 57. Rb8 {[%emt 0:00:08]} Kc2 {[%emt 0:00:31]} 58. Rc8+ {[%emt 0:00:02]} Kb1 {[%emt 0:01:34]} 59. Kf6 {[%emt 0:00:23]} Ra3 {[%emt 0:01:53]} 60. Kxe6 {[%emt 0:02:30]} Ra6+ {[%emt 0:00:51]} 61. Ke7 {[%emt 0:01:17]} Ra7+ {[%emt 0:00:27]} 62. Ke6 {[%emt 0:00:06]} Ra6+ {[%emt 0:00:07]} 63. Ke7 {[%emt 0:00:47]} Ra7+ {[%emt 0:00:32]} 1/2-1/2